[Event "Austrian Women Bundesliga 2023-24"]
[Site "Austria"]
[Date "2024.04.13"]
[Round "8.8"]
[White "Zatonskih, Anna"]
[Black "Exler, Veronika"]
[Result "1/2-1/2"]
[ECO "D02"]
[WhiteElo "2342"]
[BlackElo "2171"]
[Annotator "RC"]
[PlyCount "120"]
[EventDate "2023.11.21"]
[EventType "team-tourn"]
[EventCountry "AUT"]
[SourceTitle "playchess.com"]
[Source "ChessBase"]
[SourceQuality "1"]
[TimeControl "40/5400+30:1800+30"]

1. d4 {[%emt 0:00:04]} Nf6 {[%emt 0:00:06]} 2. Nf3 {[%emt 0:00:21]} g6 {[%emt 0:00:09]} 3. g3 {[%emt 0:06:37]} Bg7 {[%emt 0:00:19]} 4. Bg2 {[%emt 0:00:01]} d5 {[%emt 0:00:51]} 5. O-O {[%emt 0:01:30]} O-O {[%emt 0:00:06]} 6. Nbd2 {[%emt 0:03:02]} a5 {[%emt 0:00:24]} 7. a4 {[%emt 0:05:49]} Na6 {[%emt 0:12:05]} 8. Nb3 {[%emt 0:10:36]} c6 {[%emt 0:07:42]} 9. Ne5 {[%emt 0:09:47]} Ne4 {[%emt 0:13:00]} 10. Nd3 {[%emt 0:08:25]} Nd6 {[%emt 0:11:04]} 11. c3 {[%emt 0:01:53]} f6 {[%emt 0:03:50]} 12. f4 {[%emt 0:14:11]} b6 {[%emt 0:08:55]} 13. Nd2 {[%emt 0:01:50]} f5 {[%emt 0:06:00]} 14. b3 {[%emt 0:05:55]} Ne4 {[%emt 0:02:57]} 15. Nxe4 {[%emt 0:01:52]} dxe4 {[%emt 0:03:14]} 16. Ne5 {[%emt 0:00:38]} c5 {[%emt 0:08:13]} 17. e3 {[%emt 0:00:29]} Qc7 {[%emt 0:06:04]} 18. c4 {[%emt 0:02:31]} Bb7 {[%emt 0:02:01]} 19. Bb2 {[%emt 0:01:00]} Rad8 {[%emt 0:00:30]} 20. Qe2 {[%emt 0:02:37]} e6 {[%emt 0:02:57]} 21. Rad1 {[%emt 0:00:36]} Nb4 {[%emt 0:00:42]} 22. Rd2 {[%emt 0:02:00]} Bxe5 {[%emt 0:05:22]} 23. fxe5 {[%emt 0:00:38]} Nd3 {[%emt 0:00:04]} 24. Ba1 {[%emt 0:03:58]} Rf7 {[%emt 0:00:11]} 25. g4 {[%emt 0:06:34]} f4 {[%emt 0:02:28]} 26. exf4 {[%emt 0:02:33]} Nxf4 {[%emt 0:00:03]} 27. Qe3 {[%emt 0:01:07]} Nxg2 {[%emt 0:00:22]} 28. Kxg2 {[%emt 0:02:13]} Rf3 {[%emt 0:01:33]} 29. Rxf3 {[%emt 0:01:07]} exf3+ {[%emt 0:00:02]} 30. Kg3 {[%emt 0:00:07]} Qc6 {[%emt 0:02:12]} 31. dxc5 {[%emt 0:04:13]} Rxd2 {[%emt 0:00:02]} 32. Qxd2 {[%emt 0:00:05]} bxc5 {[%emt 0:01:44]} 33. Qd6 {[%emt 0:01:42]} Kf7 {[%emt 0:00:51]} 34. Bc3 {[%emt 0:00:41]} f2 {[%emt 0:00:53]} 35. Qxc6 {[%emt 0:00:08]} f1=N+ {[%emt 0:00:23]} 36. Kf2 {[%emt 0:00:05]} Bxc6 {[%emt 0:00:07]} 37. Kxf1 {[%emt 0:00:48]} Be4 {[%emt 0:00:21]} 38. Bxa5 {[%emt 0:00:40]} Bc2 {[%emt 0:00:01]} 39. Bb6 {[%emt 0:00:32]} Bxb3 {[%emt 0:00:05]} 40. a5 {[%emt 0:00:05]} Bxc4+ {[%emt 0:00:07]} 41. Kf2 {[%emt 0:30:20]} h5 {[%emt 0:10:12]} 42. gxh5 {[%emt 0:00:00]} gxh5 {[%emt 0:00:09]} 43. Bxc5 {[%emt 0:00:00]} Ke8 {[%emt 0:02:05]} 44. Kg3 {[%emt 0:00:00]} Kd7 {[%emt 0:00:31]} 45. Kh4 {[%emt 0:00:00]} Be2 {[%emt 0:13:48]} 46. Bf2 {[%emt 0:00:00]} Kc7 {[%emt 0:01:00]} 47. a6 {[%emt 0:00:00]} Kb8 {[%emt 0:00:06]} 48. Kg5 {[%emt 0:00:00]} Ka8 {[%emt 0:00:59]} 49. h3 {[%emt 0:00:00]} Kb8 {[%emt 0:00:24]} 50. a7+ {[%emt 0:00:00]} Kb7 {[%emt 0:00:06]} 51. Kf6 {[%emt 0:00:00]} Bc4 {[%emt 0:00:09]} 52. Kf7 {[%emt 0:00:00]} Bb3 {[%emt 0:00:46]} 53. Ke7 {[%emt 0:00:00]} Bc4 {[%emt 0:00:36]} 54. Kf6 {[%emt 0:00:00]} Bb3 {[%emt 0:00:06]} 55. Kg5 {[%emt 0:00:00]} Bd1 {[%emt 0:00:09]} 56. Kf4 {[%emt 0:00:00]} Be2 {[%emt 0:00:34]} 57. Be3 {[%emt 0:00:00]} Bf1 {[%emt 0:00:28]} 58. Kg3 {[%emt 0:00:00]} Ka8 {[%emt 0:00:33]} 59. Bd4 {[%emt 0:00:00]} Kb7 {[%emt 0:00:06]} 60. h4 {[%emt 0:00:00]} Be2 {[%emt 0:00:09]} 1/2-1/2

[Event "Austrian Women Bundesliga 2023-24"]
[Site "Austria"]
[Date "2024.04.13"]
[Round "8.9"]
[White "Polterauer, Chiara"]
[Black "Unuk, Laura"]
[Result "0-1"]
[ECO "C24"]
[WhiteElo "2194"]
[BlackElo "2338"]
[Annotator "RC"]
[PlyCount "74"]
[EventDate "2023.11.21"]
[EventType "team-tourn"]
[EventCountry "AUT"]
[SourceTitle "playchess.com"]
[Source "ChessBase"]
[SourceQuality "1"]
[TimeControl "40/5400+30:1800+30"]

1. e4 {[%emt 0:00:03]} e5 {[%emt 0:00:11]} 2. Nf3 {[%emt 0:00:09]} Nc6 {[%emt 0:00:12]} 3. Bc4 {[%emt 0:00:13]} Nf6 {[%emt 0:00:21]} 4. d3 {[%emt 0:02:11]} d5 {[%emt 0:00:19]} 5. exd5 {[%emt 0:01:45]} Nxd5 {[%emt 0:00:06]} 6. O-O {[%emt 0:01:47]} Nb6 {[%emt 0:00:31]} 7. Bb5 {[%emt 0:04:22]} Bd6 {[%emt 0:00:47]} 8. Re1 {[%emt 0:03:40]} f6 {[%emt 0:14:09]} 9. Bxc6+ {[%emt 0:12:05]} bxc6 {[%emt 0:00:23]} 10. d4 {[%emt 0:00:17]} O-O {[%emt 0:06:46]} 11. Qd3 {[%emt 0:10:54]} exd4 {[%emt 0:14:22]} 12. Nxd4 {[%emt 0:03:27]} Re8 {[%emt 0:02:33]} 13. Rxe8+ {[%emt 0:10:38]} Qxe8 {[%emt 0:00:11]} 14. Bd2 {[%emt 0:00:12]} Qh5 {[%emt 0:06:14]} 15. Nf3 {[%emt 0:08:09]} Bf5 {[%emt 0:06:47]} 16. Qb3+ {[%emt 0:01:15]} Kh8 {[%emt 0:00:10]} 17. Na3 {[%emt 0:04:00]} Be4 {[%emt 0:02:00]} 18. h3 {[%emt 0:00:50]} Bxf3 {[%emt 0:12:08]} 19. Qxf3 {[%emt 0:00:12]} Qe5 {[%emt 0:00:14]} 20. Re1 {[%emt 0:01:11]} Qxb2 {[%emt 0:02:57]} 21. Nc4 {[%emt 0:00:37]} Qxc2 {[%emt 0:03:11]} 22. Rc1 {[%emt 0:00:53]} Qxa2 {[%emt 0:04:40]} 23. Qxc6 {[%emt 0:02:26]} Rd8 {[%emt 0:06:56]} 24. Nxd6 {[%emt 0:03:49]} Rxd6 {[%emt 0:00:19]} 25. Qe8+ {[%emt 0:00:13]} Qg8 {[%emt 0:00:10]} 26. Qe2 {[%emt 0:06:08]} Nd5 {[%emt 0:00:39]} 27. Ba5 {[%emt 0:00:30]} Qd8 {[%emt 0:04:12]} 28. Qc4 {[%emt 0:02:49]} Rd7 {[%emt 0:04:04]} 29. Qa6 {[%emt 0:06:18]} Qa8 {[%emt 0:00:14]} 30. Rb1 {[%emt 0:02:15]} h6 {[%emt 0:05:39]} 31. Rb7 {[%emt 0:01:35]} Nf4 {[%emt 0:03:03]} 32. f3 {[%emt 0:02:55]} Qe8 {[%emt 0:00:31]} 33. Bxc7 {[%emt 0:05:56]} Qe3+ {[%emt 0:00:05]} 34. Kh2 {[%emt 0:00:21]} Rd2 {[%emt 0:00:53]} 35. Rb2 {[%emt 0:02:02]} Rxb2 {[%emt 0:00:35]} 36. Qc8+ {[%emt 0:00:04]} Kh7 {[%emt 0:00:02]} 37. Qf5+ {[%emt 0:00:07]} Ng6 {[%emt 0:00:11]} 0-1

[Event "Austrian Women Bundesliga 2023-24"]
[Site "Austria"]
[Date "2024.04.13"]
[Round "8.10"]
[White "Hrescak, Ivana"]
[Black "Schloffer, Jasmin-Denise"]
[Result "1/2-1/2"]
[ECO "E43"]
[WhiteElo "2090"]
[BlackElo "2167"]
[Annotator "RC"]
[PlyCount "100"]
[EventDate "2023.11.21"]
[EventType "team-tourn"]
[EventCountry "AUT"]
[SourceTitle "playchess.com"]
[Source "ChessBase"]
[SourceQuality "1"]
[TimeControl "40/5400+30:1800+30"]

1. d4 {[%emt 0:00:03]} Nf6 {[%emt 0:00:05]} 2. c4 {[%emt 0:00:04]} e6 {[%emt 0:00:04]} 3. Nc3 {[%emt 0:00:03]} Bb4 {[%emt 0:00:05]} 4. e3 {[%emt 0:00:03]} b6 {[%emt 0:00:05]} 5. Bd3 {[%emt 0:05:02]} Bb7 {[%emt 0:01:06]} 6. Nf3 {[%emt 0:00:12]} Ne4 {[%emt 0:01:25]} 7. Bd2 {[%emt 0:02:43]} Bxc3 {[%emt 0:05:13]} 8. Bxc3 {[%emt 0:01:45]} f5 {[%emt 0:04:53]} 9. Qe2 {[%emt 0:04:31]} O-O {[%emt 0:01:41]} 10. Rd1 {[%emt 0:02:46]} d6 {[%emt 0:05:11]} 11. O-O {[%emt 0:02:19]} Nd7 {[%emt 0:01:58]} 12. Nd2 {[%emt 0:01:30]} Qh4 {[%emt 0:04:55]} 13. f3 {[%emt 0:03:50]} Nxc3 {[%emt 0:03:30]} 14. bxc3 {[%emt 0:00:03]} Nf6 {[%emt 0:00:23]} 15. Qf2 {[%emt 0:11:01]} Qh6 {[%emt 0:04:58]} 16. Rfe1 {[%emt 0:00:59]} Rae8 {[%emt 0:05:05]} 17. Rb1 {[%emt 0:15:16]} Nd7 {[%emt 0:04:51]} 18. e4 {[%emt 0:05:39]} f4 {[%emt 0:03:47]} 19. Nb3 {[%emt 0:01:33]} Qh5 {[%emt 0:08:07]} 20. c5 {[%emt 0:07:03]} dxc5 {[%emt 0:02:48]} 21. dxc5 {[%emt 0:00:47]} Ne5 {[%emt 0:01:55]} 22. Be2 {[%emt 0:02:02]} Rf6 {[%emt 0:02:50]} 23. Nd4 {[%emt 0:03:20]} Rh6 {[%emt 0:02:44]} 24. h3 {[%emt 0:00:46]} Rg6 {[%emt 0:00:27]} 25. Kf1 {[%emt 0:04:33]} Nf7 {[%emt 0:02:37]} 26. cxb6 {[%emt 0:02:18]} axb6 {[%emt 0:02:49]} 27. Red1 {[%emt 0:01:58]} Qa5 {[%emt 0:04:37]} 28. Nb5 {[%emt 0:06:31]} Rc8 {[%emt 0:03:37]} 29. Rb3 {[%emt 0:06:46]} Qa8 {[%emt 0:02:44]} 30. Ra3 {[%emt 0:03:03]} Qb8 {[%emt 0:00:06]} 31. c4 {[%emt 0:03:16]} e5 {[%emt 0:03:26]} 32. c5 {[%emt 0:00:51]} Rd8 {[%emt 0:04:18]} 33. Rxd8+ {[%emt 0:00:42]} Qxd8 {[%emt 0:00:22]} 34. Rd3 {[%emt 0:00:26]} Qc8 {[%emt 0:01:11]} 35. Rd1 {[%emt 0:01:01]} Ba6 {[%emt 0:03:13]} 36. a4 {[%emt 0:00:53]} c6 {[%emt 0:04:17]} 37. Nc3 {[%emt 0:01:05]} bxc5 {[%emt 0:03:03]} 38. Qxc5 {[%emt 0:00:48]} Bxe2+ {[%emt 0:00:12]} 39. Nxe2 {[%emt 0:00:01]} Qa6 {[%emt 0:00:21]} 40. Qb4 {[%emt 0:02:07]} h6 {[%emt 0:02:18]} 41. Rd2 {[%emt 0:07:24]} c5 {[%emt 0:05:10]} 42. Qxc5 {[%emt 0:05:26]} Qxa4 {[%emt 0:00:46]} 43. Qc8+ {[%emt 0:02:14]} Kh7 {[%emt 0:00:05]} 44. Qd7 {[%emt 0:00:59]} Qxd7 {[%emt 0:04:19]} 45. Rxd7 {[%emt 0:00:01]} Rf6 {[%emt 0:00:50]} 46. Nc3 {[%emt 0:04:11]} Kg6 {[%emt 0:00:28]} 47. Nd5 {[%emt 0:01:12]} Ra6 {[%emt 0:02:05]} 48. Ne7+ {[%emt 0:01:17]} Kf6 {[%emt 0:03:55]} 49. Nd5+ {[%emt 0:00:25]} Kg6 {[%emt 0:00:05]} 50. Ne7+ {[%emt 0:02:54]} Kf6 {[%emt 0:00:06]} 1/2-1/2

[Event "Austrian Women Bundesliga 2023-24"]
[Site "Austria"]
[Date "2024.04.13"]
[Round "8.11"]
[White "Konecny, Sophie"]
[Black "Vidic, Teja"]
[Result "1/2-1/2"]
[ECO "C58"]
[WhiteElo "1907"]
[BlackElo "2139"]
[Annotator "RC"]
[PlyCount "61"]
[EventDate "2023.11.21"]
[EventType "team-tourn"]
[EventCountry "AUT"]
[SourceTitle "playchess.com"]
[Source "ChessBase"]
[SourceQuality "1"]
[TimeControl "40/5400+30:1800+30"]

1. e4 {[%emt 0:00:03]} e5 {[%emt 0:00:11]} 2. Nf3 {[%emt 0:00:05]} Nc6 {[%emt 0:00:04]} 3. Bc4 {[%emt 0:00:04]} Nf6 {[%emt 0:00:06]} 4. Ng5 {[%emt 0:00:09]} d5 {[%emt 0:00:06]} 5. exd5 {[%emt 0:00:06]} Na5 {[%emt 0:00:04]} 6. Bb5+ {[%emt 0:00:06]} c6 {[%emt 0:00:04]} 7. dxc6 {[%emt 0:00:05]} bxc6 {[%emt 0:00:04]} 8. Qf3 {[%emt 0:00:06]} Rb8 {[%emt 0:00:50]} 9. Bd3 {[%emt 0:00:06]} Be7 {[%emt 0:02:27]} 10. Nc3 {[%emt 0:03:50]} h6 {[%emt 0:02:44]} 11. Nge4 {[%emt 0:01:09]} Nd5 {[%emt 0:00:16]} 12. O-O {[%emt 0:02:21]} O-O {[%emt 0:01:56]} 13. Ng3 {[%emt 0:03:41]} g6 {[%emt 0:14:07]} 14. Re1 {[%emt 0:08:18]} Bf6 {[%emt 0:02:21]} 15. a3 {[%emt 0:11:57]} Nb7 {[%emt 0:19:04]} 16. Bc4 {[%emt 0:07:47]} Be6 {[%emt 0:02:02]} 17. d3 {[%emt 0:05:59]} Bg7 {[%emt 0:00:29]} 18. Nf1 {[%emt 0:02:08]} Qd7 {[%emt 0:06:24]} 19. Ne3 {[%emt 0:06:26]} Rbd8 {[%emt 0:00:25]} 20. h3 {[%emt 0:04:09]} f5 {[%emt 0:00:58]} 21. Ba2 {[%emt 0:05:27]} Kh7 {[%emt 0:00:43]} 22. Nc4 {[%emt 0:09:06]} Qc7 {[%emt 0:09:28]} 23. Bd2 {[%emt 0:05:54]} Bg8 {[%emt 0:06:29]} 24. Ne3 {[%emt 0:04:53]} Qd7 {[%emt 0:02:26]} 25. Rad1 {[%emt 0:04:14]} Kh8 {[%emt 0:04:32]} 26. Nc4 {[%emt 0:03:12]} Rfe8 {[%emt 0:00:24]} 27. Qg3 {[%emt 0:02:25]} f4 {[%emt 0:11:30]} 28. Qxg6 {[%emt 0:02:52]} Bf7 {[%emt 0:00:12]} 29. Qg4 {[%emt 0:01:49]} Qc7 {[%emt 0:00:12]} 30. Ne4 {[%emt 0:02:07]} Rg8 {[%emt 0:01:20]} 31. Qh4 {[%emt 0:02:52]} 1/2-1/2

[Event "Austrian Women Bundesliga 2023-24"]
[Site "Austria"]
[Date "2024.04.13"]
[Round "8.12"]
[White "Kordzadze, Nino"]
[Black "Wu, Min"]
[Result "1-0"]
[ECO "A47"]
[WhiteElo "1976"]
[BlackElo "1938"]
[Annotator "TA"]
[PlyCount "69"]
[EventDate "2023.11.21"]
[EventType "team-tourn"]
[EventCountry "AUT"]
[SourceTitle "playchess.com"]
[Source "ChessBase"]
[SourceQuality "1"]
[TimeControl "40/5400+30:1800+30"]

{[%evp 12,69,0,5,2,-5,-2,-10,6,19,18,22,33,0,0,-11,-9,-14,-5,-27,-7,-39,0,-22,0,0,0,0,0,0,0,0,7,8,4,0,0,-62,226,233,244,245,243,236,29956,29957,5912,5883,6199,239,5326,0,69,0,29970,29971,29971,29973,29998,29999]} 1. d4 {[%emt 0:00:03]} Nf6 {[%emt 0:00:05]} 2. Nf3 {[%emt 0:00:06]} e6 {[%emt 0:00:06]} 3. Bg5 {[%emt 0:00:06]} c5 {[%emt 0:02:20]} 4. e3 {[%emt 0:00:35]} b6 {[%emt 0:00:43]} 5. Nbd2 {[%emt 0:04:06]} Be7 {[%emt 0:06:35]} 6. c3 {[%emt 0:04:34]} Bb7 {[%emt 0:05:57]} 7. Bd3 {[%emt 0:06:30]} h6 {[%emt 0:04:03]} 8. Bxf6 {[%emt 0:06:59]} Bxf6 {[%emt 0:02:44]} 9. e4 {[%emt 0:03:44]} d6 {[%emt 0:13:19] The position is equal.} 10. Bb5+ {[%emt 0:08:42]} Bc6 {[%emt 0:00:39]} 11. Bxc6+ {[%emt 0:04:57]} Nxc6 {[%emt 0:00:06]} 12. Qa4 {[%emt 0:01:44]} Qd7 {[%emt 0:01:08]} 13. dxc5 {[%emt 0:03:20]} dxc5 {[%emt 0:07:10]} 14. Rd1 {[%emt 0:01:36]} O-O {[%emt 0:01:56]} 15. O-O {[%emt 0:05:05]} Rfd8 {[%emt 0:04:17]} 16. Qb5 {[%emt 0:08:54]} Qc7 {[%emt 0:05:24]} 17. a4 {[%emt 0:05:20]} Rd7 {[%emt 0:07:46]} 18. Nc4 {[%emt 0:03:56]} Rad8 {[%emt 0:01:58]} 19. Rxd7 {[%emt 0:01:50]} Rxd7 {[%emt 0:00:13]} 20. Ra1 {[%emt 0:02:11]} g5 {[%emt 0:15:43]} 21. h3 {[%emt 0:06:09]} h5 {[%emt 0:00:29][%cal Bh6h5,Bh5g4][%mdl 32]} 22. a5 {[%emt 0:03:06]} Nxa5 {[%emt 0:04:46]} 23. Nxa5 {[%emt 0:02:13]} bxa5 {[%emt 0:00:04]} 24. e5 {[%emt 0:02:04]} (24. g3 $11) 24... g4 $2 {[%emt 0:07:06][%mdl 8192]} (24... Bd8 $15 {stays ahead.}) 25. hxg4 $1 $18 {[%emt 0:01:43]} (25. exf6 gxf3 26. Qa4 (26. Qxa5 $2 Rd1+ 27. Rxd1 Qxa5 $19) (26. gxf3 Kh7 $11) 26... Kh7 $14) 25... hxg4 {[%emt 0:00:04]} 26. exf6 {[%emt 0:00:14]} gxf3 {[%emt 0:00:15][%mdl 4096] Endgame. KQR-KQR} 27. Qc4 {[%emt 0:01:04]} (27. Rxa5 Rd1+) (27. gxf3 Kh7 $11) 27... Kh7 $2 {[%emt 0:04:21]} (27... Qd6 $18 28. Qg4+ (28. Rxa5 Qd1+ 29. Kh2 Rd4 $11) (28. gxf3 Qd3 $16) 28... Kf8 29. gxf3 (29. Rxa5 fxg2 30. Qg7+ Ke8 $18) (29. Qg7+ Ke8 $18) 29... Ke8 30. Rxa5 Rb7 31. Qg8+ Qf8) 28. Qg4 {[%emt 0:00:26][%csl Gf6][%cal Rg4g7]} (28. gxf3 Kg6 $11) 28... Kh6 {[%emt 0:00:13]} 29. gxf3 {[%emt 0:07:07] Threatening mate with Kg2.} Qe5 {[%emt 0:01:21] [#]} 30. Qg7+ $1 $40 {[%emt 0:04:22][%mdl 128] Black is in trouble.} (30. Rxa5 Qg5 $16) 30... Kh5 {[%emt 0:00:04]} 31. Qg4+ {[%emt 0:00:13]} ({Weaker is} 31. Rxa5 Rd1+ 32. Kg2 Qg5+ 33. Qxg5+ Kxg5 $16) (31. Ra4 $18 {[%cal Oa4h4] White wants to mate with Rh4+!} Qg5+ 32. Rg4 Qxg7 33. fxg7) 31... Kh6 $14 {[%emt 0:00:04]} 32. Qg7+ $2 {[%emt 0:00:03][%mdl 8192]} (32. Rxa5 $14 Qg5 33. Qxg5+ Kxg5 34. Rxc5+ Kxf6 35. f4) 32... Kh5 {[%emt 0:00:03] [#]} 33. Ra4 $1 {[%emt 0:00:42] White mates.} ({Not} 33. Rxa5 Rd1+ 34. Kg2 Qg5+ 35. Qxg5+ Kxg5 $16) 33... Qg5+ {[%emt 0:05:00]} 34. Rg4 {[%emt 0:00:18][%csl Gg4][%cal Rg7g5]} Qh6 {[%emt 0:00:46] [#]} 35. Rh4+ $3 {[%emt 0:00:08][%mdl 512] Weighted Error Value: White=0.34/Black=0.62.  Loses game:     	---       	Black=2      Mistake:       	White=1     	Black=1      Inaccurate:     	White=2     	Black=2      OK:         	White=8     	Black=6      Best:        	White=1     	Black=1      Strong:       	White=2     	---} 1-0

[Event "Austrian Women Bundesliga 2023-24"]
[Site "Austria"]
[Date "2024.04.13"]
[Round "8.13"]
[White "Heinatz, Gundula"]
[Black "Urh, Zala"]
[Result "1/2-1/2"]
[ECO "A08"]
[WhiteElo "2116"]
[BlackElo "2263"]
[Annotator "RC"]
[PlyCount "80"]
[EventDate "2023.11.21"]
[EventType "team-tourn"]
[EventCountry "AUT"]
[SourceTitle "playchess.com"]
[Source "ChessBase"]
[SourceQuality "1"]
[TimeControl "40/5400+30:1800+30"]

1. Nf3 {[%emt 0:00:05]} d5 {[%emt 0:00:51]} 2. g3 {[%emt 0:00:05]} Nf6 {[%emt 0:00:05]} 3. Bg2 {[%emt 0:00:07]} c5 {[%emt 0:00:03]} 4. O-O {[%emt 0:00:08]} Nc6 {[%emt 0:00:09]} 5. d3 {[%emt 0:00:54]} e5 {[%emt 0:00:21]} 6. b3 {[%emt 0:02:42]} Bd6 {[%emt 0:02:30]} 7. Nfd2 {[%emt 0:02:51]} O-O {[%emt 0:04:18]} 8. e4 {[%emt 0:03:16]} d4 {[%emt 0:06:00]} 9. Nc4 {[%emt 0:03:02]} Bc7 {[%emt 0:01:30]} 10. a4 {[%emt 0:00:25]} a6 {[%emt 0:10:39]} 11. f4 {[%emt 0:06:17]} exf4 {[%emt 0:05:43]} 12. gxf4 {[%emt 0:00:07]} Bg4 {[%emt 0:04:14]} 13. Qe1 {[%emt 0:05:10]} Nb4 {[%emt 0:03:21]} 14. Nba3 {[%emt 0:03:31]} b5 {[%emt 0:07:37]} 15. Ne5 {[%emt 0:03:25]} Qb8 {[%emt 0:19:51]} 16. Qh4 {[%emt 0:10:59]} Be6 {[%emt 0:10:40]} 17. Nf3 {[%emt 0:01:15]} Bd8 {[%emt 0:06:06]} 18. f5 {[%emt 0:01:32]} Bc8 {[%emt 0:01:01]} 19. Bf4 {[%emt 0:20:31]} Qb6 {[%emt 0:02:05]} 20. a5 {[%emt 0:06:06]} Qc6 {[%emt 0:03:04]} 21. Qh3 {[%emt 0:13:26]} Ra7 {[%emt 0:03:45]} 22. Ng5 {[%emt 0:01:34]} h6 {[%emt 0:00:50]} 23. e5 {[%emt 0:01:04]} Nfd5 {[%emt 0:00:20]} 24. Ne4 {[%emt 0:00:49]} Nxf4 {[%emt 0:03:22]} 25. Rxf4 {[%emt 0:00:07]} Qe8 {[%emt 0:00:02]} 26. Nf6+ {[%emt 0:05:15]} Bxf6 {[%emt 0:00:58]} 27. exf6 {[%emt 0:00:03]} Qe5 {[%emt 0:00:01]} 28. fxg7 {[%emt 0:00:58]} Qxf4 {[%emt 0:00:48]} 29. gxf8=Q+ {[%emt 0:00:10]} Kxf8 {[%emt 0:00:05]} 30. Rf1 {[%emt 0:02:06]} Qg5 {[%emt 0:00:06]} 31. Qg3 {[%emt 0:01:19]} Qxg3 {[%emt 0:02:11]} 32. hxg3 {[%emt 0:00:02]} f6 {[%emt 0:00:01]} 33. g4 {[%emt 0:01:24]} Re7 {[%emt 0:00:59]} 34. Kf2 {[%emt 0:01:14]} Bb7 {[%emt 0:02:34]} 35. Bxb7 {[%emt 0:00:07]} Rxb7 {[%emt 0:00:03]} 36. Rh1 {[%emt 0:00:12]} Rh7 {[%emt 0:00:04]} 37. Kf3 {[%emt 0:00:22]} Nc6 {[%emt 0:01:49]} 38. Ke4 {[%emt 0:00:30]} Nb4 {[%emt 0:00:39]} 39. Kf3 {[%emt 0:00:29]} Nc6 {[%emt 0:00:35]} 40. Ke4 {[%emt 0:00:06]} Nb4 {[%emt 0:00:20]} 1/2-1/2

[Event "Austrian Women Bundesliga 2023-24"]
[Site "Austria"]
[Date "2024.04.13"]
[Round "8.14"]
[White "Janzelj, Lara"]
[Black "Rojickova, Monika"]
[Result "1/2-1/2"]
[ECO "D13"]
[WhiteElo "2167"]
[BlackElo "2072"]
[Annotator "RC"]
[PlyCount "60"]
[EventDate "2023.11.21"]
[EventType "team-tourn"]
[EventCountry "AUT"]
[SourceTitle "playchess.com"]
[Source "ChessBase"]
[SourceQuality "1"]
[TimeControl "40/5400+30:1800+30"]

1. d4 {[%emt 0:00:03]} d5 {[%emt 0:00:10]} 2. c4 {[%emt 0:00:11]} c6 {[%emt 0:00:05]} 3. cxd5 {[%emt 0:00:06]} cxd5 {[%emt 0:00:06]} 4. Nc3 {[%emt 0:00:10]} Nf6 {[%emt 0:02:07]} 5. Bf4 {[%emt 0:00:20]} Nc6 {[%emt 0:00:29]} 6. e3 {[%emt 0:00:09]} a6 {[%emt 0:00:09]} 7. Be2 {[%emt 0:00:36]} Bf5 {[%emt 0:01:30]} 8. Nf3 {[%emt 0:00:57]} e6 {[%emt 0:01:53]} 9. Qb3 {[%emt 0:00:49]} Ra7 {[%emt 0:25:56]} 10. O-O {[%emt 0:05:26]} Bd6 {[%emt 0:00:43]} 11. Bxd6 {[%emt 0:05:53]} Qxd6 {[%emt 0:00:06]} 12. Rfc1 {[%emt 0:00:27]} O-O {[%emt 0:03:10]} 13. Na4 {[%emt 0:10:22]} Nd7 {[%emt 0:10:03]} 14. Nc5 {[%emt 0:05:20]} Nxc5 {[%emt 0:05:02]} 15. Rxc5 {[%emt 0:01:52]} Bg4 {[%emt 0:10:16]} 16. Qb6 {[%emt 0:07:45]} Qe7 {[%emt 0:02:20]} 17. Rac1 {[%emt 0:03:56]} Raa8 {[%emt 0:03:17]} 18. Qb3 {[%emt 0:08:34]} Rfc8 {[%emt 0:05:38]} 19. Qc3 {[%emt 0:02:05]} Qd8 {[%emt 0:03:44]} 20. b4 {[%emt 0:00:38]} Ne7 {[%emt 0:06:22]} 21. Qb2 {[%emt 0:02:58]} Bxf3 {[%emt 0:12:05]} 22. Bxf3 {[%emt 0:00:06]} b6 {[%emt 0:02:39]} 23. Rxc8 {[%emt 0:01:09]} Rxc8 {[%emt 0:00:05]} 24. Be2 {[%emt 0:00:17]} Rxc1+ {[%emt 0:02:34]} 25. Qxc1 {[%emt 0:00:01]} a5 {[%emt 0:00:51]} 26. bxa5 {[%emt 0:00:26]} bxa5 {[%emt 0:00:03]} 27. Qc5 {[%emt 0:01:12]} g6 {[%emt 0:01:20]} 28. h4 {[%emt 0:01:05]} h5 {[%emt 0:00:33]} 29. Bd3 {[%emt 0:01:11]} Kg7 {[%emt 0:00:15]} 30. g3 {[%emt 0:00:18]} Nc8 {[%emt 0:00:37]} 1/2-1/2

[Event "Austrian Women Bundesliga 2023-24"]
[Site "Austria"]
[Date "2024.04.13"]
[Round "8.15"]
[White "Bruessow, Nina"]
[Black "Hercog, Nusa"]
[Result "0-1"]
[ECO "B19"]
[WhiteElo "1884"]
[BlackElo "2034"]
[Annotator "NA RC"]
[PlyCount "90"]
[EventDate "2023.11.21"]
[EventType "team-tourn"]
[EventCountry "AUT"]
[SourceTitle "playchess.com"]
[Source "ChessBase"]
[SourceQuality "1"]
[TimeControl "40/5400+30:1800+30"]

1. e4 {[%emt 1:31:00]} c6 {[%emt 1:31:00]} 2. d4 {[%emt 0:00:00]} d5 {[%emt 0:00:00]} 3. Nd2 {[%emt 0:00:00]} dxe4 {[%emt 0:00:00]} 4. Nxe4 {[%emt 0:00:00]} Bf5 {[%emt 0:00:00]} 5. Ng3 {[%emt 0:00:00]} Bg6 {[%emt 0:00:00]} 6. Nf3 {[%emt 0:00:00]} Nd7 {[%emt 0:00:00]} 7. h4 {[%emt 0:00:00]} h6 {[%emt 0:00:00]} 8. h5 {[%emt 0:00:00]} Bh7 {[%emt 0:00:00]} 9. Bd3 {[%emt 0:00:00]} Bxd3 {[%emt 0:00:00]} 10. Qxd3 {[%emt 0:00:00]} e6 {[%emt 0:00:00]} 11. Bd2 {[%emt 0:00:00]} Ngf6 {[%emt 0:00:00]} 12. O-O-O {[%emt 0:00:00]} Be7 {[%emt 0:00:00]} 13. Kb1 {[%emt 0:00:00]} Qb6 {[%emt 0:00:00]} 14. c4 {[%emt 0:00:00]} Rd8 {[%emt 0:00:00]} 15. Ne4 {[%emt 0:00:00]} c5 {[%emt 0:00:00]} 16. Bc3 {[%emt 0:00:00]} O-O {[%emt 0:00:00]} 17. Rhg1 {[%emt 0:00:00]} Nxe4 {[%emt 0:00:00]} 18. Qxe4 {[%emt 0:00:00]} Bf6 {[%emt 0:00:00]} 19. g4 {[%emt 0:00:00]} cxd4 {[%emt 0:00:00]} 20. Bxd4 {[%emt 0:00:00]} Nc5 {[%emt 0:00:00]} 21. Qc2 {[%emt 0:00:00]} Bxd4 {[%emt 0:00:00]} 22. Nxd4 {[%emt 0:00:00]} e5 {[%emt 0:00:00]} 23. Nf5 {[%emt 0:00:00]} Qf6 {[%emt 0:00:00]} 24. Ne3 {[%emt 0:00:00]} Rxd1+ {[%emt 0:00:00]} 25. Rxd1 {[%emt 0:00:00]} e4 {[%emt 0:00:00]} 26. Nd5 {[%emt 0:00:00]} Qg5 {[%emt 0:00:00]} 27. Qe2 {[%emt 0:00:00]} Re8 {[%emt 0:00:00]} 28. f4 {[%emt 0:01:16]} Qh4 {[%emt 0:00:00]} 29. g5 {[%emt 0:01:13]} hxg5 {[%emt 0:00:00]} 30. Qe3 {[%emt 0:08:38]} b6 {[%emt 0:09:49]} 31. b4 {[%emt 0:02:39]} gxf4 {[%emt 0:01:52]} 32. Nxf4 {[%emt 0:00:26]} Ne6 {[%emt 0:00:32]} 33. Nd5 {[%emt 0:00:52]} Qxh5 {[%emt 0:01:17]} 34. Rg1 {[%emt 0:00:14]} Qh4 {[%emt 0:00:47]} 35. Rg3 {[%emt 0:01:10]} f5 {[%emt 0:00:41]} 36. Rg6 {[%emt 0:00:25]} Kf7 {[%emt 0:00:26]} 37. Qg1 {[%emt 0:00:31]} Qh5 {[%emt 0:00:59]} 38. Rg2 {[%emt 0:00:29]} Rh8 {[%emt 0:00:14]} 39. Kb2 {[%emt 0:00:20]} g6 {[%emt 0:01:16]} 40. Qf2 {[%emt 0:00:36]} Qh3 {[%emt 0:00:49]} 41. Qd2 {[%emt 0:04:48]} g5 {[%emt 0:07:34]} 42. Re2 {[%emt 0:07:21]} Qg3 {[%emt 0:02:25]} 43. Rg2 {[%emt 0:02:40]} Qe5+ {[%emt 0:00:15]} 44. Nc3 {[%emt 0:00:40]} Rd8 {[%emt 0:00:27]} 45. Qe2 {[%emt 0:00:23]} Nf4 {[%emt 0:00:31]} 0-1